bitfinex/quotes_BTCUSD_20250412
["timestamp","ask_amount","ask_price","bid_price","bid_amount"]
[1744496639630,0.71526439,85513.0,85512.0,6e-07]
[1744496640121,0.72026439,85513.0,85512.0,6e-07]
[1744496640326,0.70572354,85513.0,85512.0,6e-07]
[1744496640903,0.84272354,85513.0,85512.0,6e-07]
[1744496641986,0.85479918,85513.0,85512.0,6e-07]
[1744496642349,0.84272354,85513.0,85512.0,6e-07]
[1744496643794,0.70572354,85513.0,85512.0,6e-07]
[1744496643997,0.84272354,85513.0,85512.0,6e-07]
[1744496646473,0.85726439,85513.0,85512.0,6e-07]
[1744496647250,1.27076439,85513.0,85512.0,6e-07]
[1744496647884,1.39149287,85513.0,85512.0,6e-07]
[1744496648321,1.27076439,85513.0,85512.0,6e-07]
[1744496650884,1.37912354,85513.0,85512.0,6e-07]
[1744496651106,1.25622354,85513.0,85512.0,6e-07]
[1744496655236,1.11922354,85513.0,85512.0,6e-07]
[1744496655465,0.91626354,85513.0,85512.0,6e-07]
[1744496656386,0.91026354,85513.0,85512.0,6e-07]
[1744496656604,0.91326354,85513.0,85512.0,6e-07]
[1744496657271,0.90826354,85513.0,85512.0,6e-07]
[1744496657509,0.91126354,85513.0,85512.0,6e-07]
[1744496657765,0.88126354,85513.0,85512.0,6e-07]
[1744496658495,0.88070469,85513.0,85512.0,6e-07]
[1744496668079,0.88074469,85513.0,85512.0,6e-07]
[1744496672687,0.88070469,85513.0,85512.0,6e-07]
[1744496681290,2.08458469,85513.0,85512.0,6e-07]
[1744496687428,0.88070469,85513.0,85512.0,6e-07]
[1744496688345,0.00604,85513.0,85512.0,0.0965006]
[1744496688707,0.00604,85513.0,85512.0,0.10319455]
[1744496688923,0.00604,85513.0,85512.0,0.0965006]
[1744496689142,0.00304,85513.0,85512.0,0.10319455]
[1744496689391,4e-05,85513.0,85512.0,0.0965006]
[1744496689593,0.00204,85513.0,85512.0,0.0965006]
[1744496690342,0.00304,85513.0,85512.0,0.0965006]
[1744496690916,0.00104,85513.0,85512.0,0.0965006]
[1744496691464,0.00104,85513.0,85512.0,0.0975006]
[1744496694912,0.138,85513.0,85512.0,0.0975006]
[1744496697404,0.138,85513.0,85512.0,0.0010006]
[1744496697604,0.25884154,85513.0,85512.0,0.0010006]
[1744496698375,0.25784154,85513.0,85512.0,0.0010006]
[1744496698585,0.25784154,85513.0,85512.0,6e-07]
[1744496698802,0.25984154,85513.0,85512.0,6e-07]
[1744496699018,0.26184154,85513.0,85512.0,6e-07]
[1744496699264,0.25984154,85513.0,85512.0,6e-07]
[1744496699513,0.26284154,85513.0,85512.0,6e-07]
[1744496703002,0.32438239,85513.0,85512.0,6e-07]
[1744496703152,0.43251614,85513.0,85512.0,6e-07]
[1744496703334,0.32438239,85513.0,85512.0,6e-07]
[1744496703736,0.27738239,85513.0,85512.0,6e-07]
[1744496705880,0.69088239,85513.0,85512.0,6e-07]
[1744496706717,1.03088239,85513.0,85512.0,6e-07]
[1744496706935,1.15161087,85513.0,85512.0,6e-07]
[1744496707105,1.03088239,85513.0,85512.0,6e-07]
[1744496713348,1.17958239,85513.0,85512.0,6e-07]
[1744496714154,1.17758239,85513.0,85512.0,6e-07]
[1744496714550,1.23248239,85513.0,85512.0,6e-07]
[1744496714751,1.35321087,85513.0,85512.0,6e-07]
[1744496714942,1.35021087,85513.0,85512.0,6e-07]
[1744496715991,1.35421087,85513.0,85512.0,6e-07]
[1744496716201,0.233937,85493.0,85491.0,0.002]
[1744496716414,0.59780154,85492.0,85491.0,0.002]
[1744496717691,0.59780154,85492.0,85491.0,0.003]
[1744496718324,0.59980154,85492.0,85491.0,0.003]
[1744496718826,0.60854355,85492.0,85491.0,0.003]
[1744496723059,0.233942,85491.0,85490.0,7e-07]
[1744496723264,0.35478354,85491.0,85490.0,7e-07]
[1744496723463,0.69478354,85491.0,85490.0,7e-07]
[1744496724207,0.69778354,85491.0,85490.0,7e-07]
[1744496724563,0.69778354,85491.0,85481.0,5e-07]
[1744496724564,0.233967,85482.0,85481.0,5e-07]
[1744496724779,0.35480854,85482.0,85481.0,5e-07]
[1744496725216,0.37664929,85482.0,85481.0,5e-07]
[1744496726081,0.37664929,85482.0,85481.0,0.00046756]
[1744496726290,0.388691,85482.0,85481.0,0.00046756]
[1744496726505,0.36685025,85482.0,85481.0,0.00046756]
[1744496727145,0.36785025,85482.0,85481.0,0.00046756]
[1744496729115,0.41646154,85482.0,85481.0,0.00046756]
[1744496729308,0.41646154,85482.0,85461.0,0.0028474]
[1744496729309,0.573978,85478.0,85477.0,2.6e-07]
[1744496729547,0.69481954,85478.0,85477.0,2.6e-07]
[1744496729757,0.70936039,85478.0,85477.0,2.6e-07]
[1744496729908,1.12286039,85478.0,85477.0,2.6e-07]
[1744496730315,1.12286039,85478.0,85461.0,6.6e-07]
[1744496730316,0.58856285,85462.0,85461.0,6.6e-07]
[1744496730634,2.05060439,85462.0,85461.0,7.5e-07]
[1744496731624,2.03606354,85462.0,85461.0,7.5e-07]
[1744496732024,2.18031619,85462.0,85461.0,7.5e-07]
[1744496732369,2.05958771,85462.0,85461.0,7.5e-07]
[1744496732889,2.06358771,85462.0,85461.0,7.5e-07]
[1744496733292,2.05404686,85462.0,85461.0,0.00100075]
[1744496737955,1.447262,85462.0,85461.0,0.04930075]
[1744496738204,1.584262,85462.0,85461.0,0.04930075]
[1744496739499,0.009,85462.0,85461.0,0.04930075]
[1744496739932,0.009,85462.0,85461.0,0.05640476]
[1744496741837,0.009,85462.0,85461.0,0.29042876]
[1744496742185,0.009,85462.0,85461.0,0.05640476]
[1744496742400,0.009,85462.0,85461.0,0.06005991]
[1744496742800,0.0117,85466.0,85461.0,0.25648491]
[1744496743001,0.0117,85469.0,85464.0,0.0117]
[1744496743225,0.245704,85469.0,85465.0,0.06]
[1744496743556,0.0117,85468.0,85465.0,0.06713131]
[1744496743930,0.0117,85468.0,85465.0,0.05543131]
[1744496744734,0.0117,85468.0,85465.0,0.05743131]
[1744496745638,0.245708,85468.0,85465.0,0.05743131]
[1744496747309,0.234011,85466.0,85465.0,0.05743131]
[1744496748530,0.234011,85466.0,85465.0,0.0503]
[1744496748988,0.234011,85466.0,85461.0,7.5e-07]
[1744496748989,0.234022,85462.0,85461.0,7.5e-07]
[1744496750296,0.234022,85462.0,85461.0,0.00400075]
[1744496750297,0.235022,85462.0,85461.0,0.00400075]
[1744496754876,0.35586354,85462.0,85461.0,0.00400075]
[1744496755939,0.35686354,85462.0,85461.0,7.5e-07]
[1744496756926,0.35886354,85462.0,85461.0,7.5e-07]
[1744496760390,0.238022,85462.0,85461.0,7.5e-07]
[1744496763439,0.011701,85459.0,85454.0,0.0458]
[1744496764384,0.13936,85458.0,85454.0,0.0458]
[1744496764814,0.373393,85458.0,85454.0,0.0458]
[1744496765384,0.373393,85458.0,85456.0,0.0014232]
[1744496765585,0.373393,85458.0,85456.0,0.0004232]
[1744496765761,0.374393,85458.0,85456.0,0.0004232]
[1744496766187,0.374393,85458.0,85456.0,0.0014232]
[1744496770892,0.373393,85458.0,85456.0,0.0014232]
[1744496771287,0.375393,85458.0,85456.0,0.0004232]
[1744496771726,0.374393,85458.0,85456.0,0.0004232]
[1744496771937,0.376393,85458.0,85456.0,0.0004232]
[1744496772154,0.377393,85458.0,85456.0,0.0004232]
[1744496773299,0.12084154,85457.0,85456.0,0.0004232]
[1744496773741,0.12973213,85457.0,85456.0,0.0004232]
[1744496774419,0.13173213,85457.0,85456.0,0.0004232]
[1744496774847,0.13273213,85457.0,85456.0,0.0004232]
[1744496775857,0.14727298,85457.0,85456.0,2e-07]
[1744496776064,0.90077298,85457.0,85456.0,2e-07]
[1744496777083,0.89877298,85457.0,85456.0,2e-07]
[1744496777285,0.90177298,85457.0,85456.0,2e-07]
[1744496777892,0.90077298,85457.0,85456.0,2e-07]
[1744496778330,0.574063,85447.0,85446.0,4e-07]
[1744496778545,0.69490454,85447.0,85446.0,4e-07]
[1744496778752,0.70944539,85447.0,85446.0,4e-07]
[1744496779567,0.011703,85442.0,85439.0,0.0004237]
[1744496779765,0.26020154,85441.0,85439.0,0.0004237]
[1744496779943,0.27228694,85441.0,85439.0,0.0004237]
[1744496780144,0.50636594,85441.0,85439.0,0.0004237]
[1744496781269,1.20468,85440.0,85439.0,0.0030007]
[1744496781464,1.32552154,85440.0,85439.0,0.0030007]
[1744496782114,1.32552154,85440.0,85439.0,7e-07]
[1744496782315,1.34738048,85440.0,85439.0,7e-07]
[1744496782561,1.34838048,85440.0,85439.0,0.0020007]
[1744496782963,1.34938048,85440.0,85439.0,0.0020007]
[1744496784125,1.34838048,85440.0,85439.0,0.0020007]
[1744496784327,1.34738048,85440.0,85439.0,7e-07]
[1744496784475,1.34938048,85440.0,85439.0,0.0010007]
[1744496786175,1.32752154,85440.0,85439.0,0.0010007]
[1744496787489,1.34934973,85440.0,85439.0,0.0010007]
[1744496790329,1.34879111,85440.0,85439.0,0.0010007]
[1744496794425,1.49039111,85440.0,85439.0,0.0010007]
[1744496795541,1.49039111,85440.0,85439.0,0.00019703]
[1744496797242,1.46856292,85440.0,85439.0,0.00019703]
[1744496803705,1.49044827,85440.0,85439.0,0.00019703]
[1744496804435,1.46856292,85440.0,85439.0,0.00019703]
[1744496805568,1.49046061,85440.0,85439.0,0.00019703]
[1744496820900,0.011704,85434.0,85431.0,0.00114203]
[1744496821168,0.12084154,85433.0,85431.0,0.00114203]
[1744496821501,0.25600169,85432.0,85431.0,0.00114203]
[1744496821733,0.37684323,85432.0,85431.0,0.00114203]
[1744496821946,0.51536323,85432.0,85431.0,0.00114203]
[1744496822167,0.51536323,85432.0,85431.0,0.00324587]
[1744496823857,0.50891323,85432.0,85431.0,0.00124587]
[1744496824117,0.50991323,85432.0,85431.0,0.00224587]
[1744496824727,0.38907169,85432.0,85431.0,0.05124587]
[1744496825188,0.02289769,85432.0,85431.0,0.33475287]
[1744496825193,0.5482,85473.0,85431.0,0.13352171]
[1744496825194,0.011703,85444.0,85431.0,0.13352171]
[1744496825420,0.011703,85444.0,85440.0,0.0984]
[1744496825421,0.011703,85443.0,85440.0,0.0984]
[1744496825641,0.245779,85443.0,85441.0,0.049]
[1744496825868,0.234076,85442.0,85441.0,0.05723655]
[1744496827488,0.234076,85442.0,85441.0,0.049]
[1744496827915,0.235076,85442.0,85441.0,0.053]
[1744496829011,0.001,85442.0,85441.0,0.053]
[1744496829234,0.001,85442.0,85441.0,0.1024]
[1744496829452,0.001,85442.0,85441.0,0.11054716]
[1744496830410,0.001,85442.0,85441.0,0.1024]
[1744496830820,0.001,85442.0,85441.0,0.11060956]
[1744496834716,0.001,85442.0,85441.0,0.4655301]
[1744496835315,0.235076,85442.0,85441.0,0.11060956]
[1744496835827,0.001,85442.0,85441.0,0.11060956]
[1744496836058,0.001,85442.0,85441.0,0.10660956]
[1744496836260,0.245774,85444.0,85441.0,0.05760956]
[1744496836497,0.245774,85444.0,85442.0,0.0459]
[1744496836894,0.245774,85444.0,85443.0,0.00815231]
[1744496837283,0.245774,85444.0,85443.0,0.05405231]
[1744496837602,0.246774,85444.0,85443.0,0.05405231]
[1744496838022,0.247774,85444.0,85443.0,0.05905231]
[1744496838227,0.247774,85444.0,85443.0,0.06105231]
[1744496844855,0.247774,85444.0,85443.0,0.007]
[1744496845297,0.50709554,85444.0,85428.0,0.0467]
[1744496845533,0.50709554,85444.0,85426.0,0.0004237]
[1744496845534,0.234104,85432.0,85426.0,0.0004237]
[1744496845741,0.35494554,85432.0,85426.0,0.0004237]
[1744496846370,0.35494554,85432.0,85431.0,0.00224587]
[1744496847015,0.35494554,85432.0,85431.0,0.00124587]
[1744496847220,0.35594554,85432.0,85431.0,0.00924587]
[1744496847599,0.36491719,85432.0,85431.0,0.00924587]
[1744496855938,0.235104,85432.0,85431.0,0.00924587]
[1744496856337,0.23487276,85432.0,85431.0,0.00924587]
[1744496861188,0.37435276,85432.0,85431.0,0.00924587]
[1744496864943,0.4951943,85432.0,85431.0,0.00924587]
[1744496866259,0.4951943,85432.0,85431.0,0.00824587]
[1744496866585,0.4941943,85432.0,85431.0,0.00124587]
[1744496867001,0.57321334,85432.0,85431.0,0.00324587]
[1744496867204,0.4951943,85432.0,85431.0,0.00324587]
[1744496868099,0.4941943,85432.0,85431.0,0.00124587]
[1744496868407,0.4961943,85432.0,85431.0,0.00224587]
[1744496868560,0.4951943,85432.0,85431.0,0.00224587]
[1744496868913,0.4961943,85432.0,85431.0,0.00224587]
[1744496869498,0.37539276,85432.0,85431.0,0.00224587]
[1744496880369,0.37539276,85432.0,85431.0,0.09904587]
[1744496880370,0.002,85432.0,85431.0,0.09904587]
[1744496880855,0.002,85432.0,85431.0,0.10735375]
[1744496893622,0.002,85432.0,85431.0,0.01055375]
[1744496893906,0.12284154,85432.0,85431.0,0.01055375]
[1744496894124,0.12284154,85432.0,85431.0,0.00224587]
[1744496898066,0.002,85432.0,85431.0,0.00224587]
[1744496899783,0.12284154,85432.0,85431.0,0.00224587]
[1744496900639,0.26116154,85432.0,85431.0,0.00224587]
[1744496910319,0.28303552,85432.0,85431.0,0.00224587]
[1744496911814,0.28203552,85432.0,85431.0,0.00224587]
[1744496912178,0.28203552,85432.0,85431.0,0.00124587]
[1744496914378,0.26016154,85432.0,85431.0,0.00124587]
[1744496915367,0.13932,85432.0,85431.0,0.04634587]
[1744496915773,0.13932,85432.0,85431.0,0.05470611]
[1744496915977,0.13932,85432.0,85431.0,0.04634587]
[1744496916174,0.13932,85432.0,85431.0,0.05470611]
[1744496916408,0.13832,85432.0,85431.0,0.05470611]
[1744496916884,0.13932,85432.0,85431.0,0.05470611]
[1744496917329,0.13932,85432.0,85431.0,0.33731311]
[1744496917879,0.13832,85432.0,85431.0,0.33731311]
[1744496918310,0.13932,85432.0,85431.0,0.33731311]
[1744496918732,0.13832,85432.0,85431.0,0.33731311]
[1744496919138,0.13832,85432.0,85431.0,0.33831311]
[1744496919352,0.13832,85432.0,85431.0,0.33731311]
[1744496919577,0.13832,85432.0,85431.0,0.10520611]
[1744496919853,0.13932,85432.0,85431.0,0.10520611]
[1744496922222,0.13686248,85432.0,85431.0,0.10520611]
[1744496931781,0.37096648,85432.0,85431.0,0.10520611]
[1744496932142,0.37096648,85432.0,85431.0,0.09684587]
[1744496932754,0.37096648,85432.0,85431.0,0.05661553]
[1744496932970,0.13686248,85432.0,85431.0,0.05661553]
[1744496933382,0.13686248,85432.0,85431.0,0.29072253]
[1744496933779,0.001,85432.0,85431.0,0.33782253]
[1744496936221,0.001,85432.0,85431.0,0.45866407]
[1744496938455,0.011703,85447.0,85444.0,0.0471]
[1744496938593,0.011703,85447.0,85445.0,0.00821949]
[1744496939439,0.012703,85447.0,85445.0,0.00821949]
[1744496939798,0.014703,85447.0,85445.0,0.00821949]
[1744496939958,0.013703,85447.0,85445.0,0.00821949]
[1744496940485,0.014703,85447.0,85445.0,0.00821949]
[1744496940857,0.234065,85446.0,85445.0,0.00821949]
[1744496941087,0.245782,85441.0,85437.0,0.058804]
[1744496941310,0.245782,85441.0,85437.0,0.292892]
[1744496941512,0.234076,85443.0,85439.0,0.011704]
[1744496941731,0.011703,85443.0,85439.0,0.011704]
[1744496941921,0.011703,85443.0,85440.0,0.00815916]
[1744496942126,0.245776,85444.0,85440.0,0.25394316]
[1744496942367,0.001,85446.0,85443.0,0.011703]
[1744496942535,0.001,85446.0,85443.0,0.245774]
[1744496942684,0.011703,85447.0,85444.0,0.00817087]
[1744496942881,0.245768,85447.0,85444.0,0.00817087]
[1744496943291,0.234068,85446.0,85444.0,0.00817087]
[1744496943695,0.011703,85445.0,85442.0,0.245778]
[1744496944462,0.011703,85445.0,85443.0,0.00816697]
[1744496945912,0.245773,85445.0,85443.0,0.00816697]
[1744496947184,0.246773,85445.0,85443.0,0.00816697]
[1744496949123,0.012703,85445.0,85443.0,0.00816697]
[1744496949351,0.246773,85445.0,85443.0,0.00816697]
[1744496949727,0.011704,85439.0,85434.0,0.0459]
[1744496949929,0.011704,85439.0,85434.0,0.057604]
[1744496949930,0.011704,85437.0,85434.0,0.057604]
[1744496950146,0.011704,85437.0,85435.0,0.0091623]
[1744496950737,0.234093,85436.0,85435.0,0.0091623]
[1744496950939,0.234093,85436.0,85435.0,0.0041623]
[1744496951142,0.234093,85436.0,85435.0,0.00832117]
[1744496951344,0.234098,85434.0,85431.0,0.04634587]
[1744496951785,0.234104,85432.0,85431.0,0.04634587]
[1744496951944,0.245802,85434.0,85431.0,0.04634587]
[1744496952327,0.011704,85435.0,85431.0,0.04634587]
[1744496952729,0.001,85434.0,85431.0,0.28445187]
[1744496953597,0.001,85434.0,85431.0,0.05034587]
[1744496953802,0.012704,85434.0,85431.0,0.05034587]
[1744496954225,0.246805,85434.0,85431.0,0.05034587]
[1744496954463,0.234104,85432.0,85431.0,0.05034587]
[1744496954848,0.246805,85434.0,85431.0,0.05034587]
[1744496955452,0.012704,85434.0,85431.0,0.05034587]
[1744496955605,0.011704,85434.0,85431.0,0.04634587]
[1744496956033,0.001,85432.0,85431.0,0.05034587]
[1744496956551,0.001,85432.0,85431.0,0.05434587]
[1744496956702,0.001,85432.0,85431.0,0.00924587]
[1744496957896,0.234104,85433.0,85431.0,0.00124587]
[1744496958336,0.234104,85433.0,85432.0,0.00832116]
[1744496958735,0.234104,85433.0,85432.0,0.00709516]
[1744496959146,0.235104,85433.0,85432.0,0.00709516]
[1744496959806,0.236104,85433.0,85432.0,0.01109516]
[1744496962842,0.236104,85433.0,85432.0,0.00805089]
[1744496963051,0.002,85433.0,85432.0,0.00805089]
[1744496979432,0.02393196,85433.0,85432.0,0.00805089]
[1744496984870,0.002,85433.0,85432.0,0.00805089]
[1744496986990,0.02393515,85433.0,85432.0,0.00805089]
[1744496987917,0.002,85433.0,85432.0,0.00805089]
[1744496989267,0.02393484,85433.0,85432.0,0.00805089]
[1744496989687,0.002,85433.0,85432.0,0.00805089]
[1744496992518,0.02393516,85433.0,85432.0,0.00805089]
[1744496993164,0.236101,85433.0,85432.0,0.00805089]
[1744496996598,0.002,85433.0,85432.0,0.00805089]
[1744496999624,0.02393247,85433.0,85432.0,0.00805089]
[1744497004573,0.002,85433.0,85432.0,0.00805089]
[1744497012506,0.002,85433.0,85432.0,0.05475089]
[1744497012708,0.002,85433.0,85432.0,0.25686665]
[1744497012908,0.002,85433.0,85432.0,0.25452613]
[1744497014679,0.245757,85450.0,85445.0,0.011703]
[1744497014883,0.011702,85449.0,85445.0,0.011703]
[1744497015321,0.245761,85449.0,85445.0,0.011703]
[1744497015533,0.245761,85449.0,85446.0,0.00578061]
[1744497016305,0.245766,85447.0,85443.0,0.011703]
[1744497016498,0.245766,85447.0,85444.0,0.00576476]
[1744497016712,0.234067,85446.0,85444.0,0.00576476]
[1744497016980,0.234067,85446.0,85436.0,0.011704]
[1744497017171,0.011703,85441.0,85436.0,0.245795]
[1744497017709,0.245785,85441.0,85437.0,0.011704]
[1744497018598,0.245785,85441.0,85436.0,0.003]
[1744497018599,0.23409,85437.0,85436.0,0.003]
[1744497019109,0.23409,85437.0,85431.0,0.00124587]
[1744497019110,0.234103,85433.0,85431.0,0.00124587]
[1744497020956,0.234103,85433.0,85431.0,0.00224587]
[1744497021385,0.235103,85433.0,85431.0,0.00724587]
[1744497023943,0.235103,85433.0,85432.0,0.00575316]
[1744497024386,0.235103,85433.0,85431.0,0.00724587]
[1744497024738,0.235103,85433.0,85432.0,0.00575316]
[1744497024962,0.235103,85433.0,85431.0,0.00724587]
[1744497025185,0.235103,85433.0,85432.0,0.00575316]
[1744497025604,0.234103,85433.0,85432.0,0.001]
[1744497026901,0.235103,85433.0,85432.0,0.006]
[1744497032327,0.35594454,85433.0,85432.0,0.006]
[1744497032776,0.36480945,85433.0,85432.0,0.006]
[1744497032982,0.36480945,85433.0,85432.0,0.005]
[1744497033309,0.36380945,85433.0,85432.0,0.001]
[1744497033485,0.36380945,85433.0,85432.0,0.002]
[1744497039965,0.234103,85433.0,85432.0,0.002]
[1744497051748,0.35494454,85433.0,85432.0,0.002]
[1744497051946,0.40204454,85433.0,85432.0,0.002]
[1744497053270,0.40204454,85433.0,85431.0,0.00124587]
[1744497053468,0.12084154,85432.0,85431.0,0.00124587]
[1744497054459,0.12084154,85432.0,85431.0,0.00224587]
[1744497054845,0.12084154,85432.0,85431.0,0.00124587]
[1744497055053,0.12084154,85432.0,85431.0,0.00224587]
[1744497055353,0.12284154,85432.0,85431.0,0.00224587]
[1744497056418,0.46384154,85432.0,85431.0,0.00224587]
[1744497057793,0.574118,85427.0,85426.0,5.7e-07]
[1744497058045,0.74125954,85427.0,85426.0,5.7e-07]
[1744497058761,0.620431,85422.0,85421.0,7e-08]
[1744497058999,1.30647339,85422.0,85421.0,7e-08]
[1744497060432,1.31147339,85422.0,85421.0,7e-08]
[1744497060846,1.33041438,85422.0,85421.0,7e-08]
[1744497061307,1.31587353,85422.0,85421.0,7e-08]
[1744497061565,1.26957353,85422.0,85421.0,7e-08]
[1744497062326,0.02394099,85422.0,85421.0,7e-08]
[1744497062535,0.02394099,85422.0,85421.0,0.09830007]
[1744497062734,0.02394099,85422.0,85421.0,0.1042387]
[1744497063152,0.01094099,85422.0,85421.0,0.1042387]
[1744497063554,0.245834,85424.0,85421.0,0.1052387]
[1744497063763,0.245834,85424.0,85421.0,0.1042387]
[1744497064129,0.001,85422.0,85421.0,0.1052387]
[1744497064339,0.001,85422.0,85421.0,0.1042387]
[1744497064742,0.001,85422.0,85421.0,0.1052387]
[1744497065056,0.246834,85424.0,85421.0,0.1042387]
[1744497065686,0.234131,85423.0,85421.0,0.1042387]
[1744497066152,0.234131,85423.0,85421.0,0.0558387]
[1744497066361,0.001,85422.0,85421.0,0.05190007]
[1744497066801,0.234131,85423.0,85421.0,0.04990007]
[1744497067022,0.235131,85423.0,85421.0,0.05290007]
[1744497067230,0.235131,85423.0,85421.0,0.05090007]
[1744497067414,0.235131,85423.0,85421.0,0.04990007]
[1744497067678,0.235131,85423.0,85421.0,0.05090007]
[1744497067898,0.234131,85423.0,85421.0,0.04990007]
[1744497068182,0.234131,85423.0,85421.0,0.05090007]
[1744497071450,0.011705,85427.0,85423.0,0.011706]
[1744497071610,0.234128,85423.0,85422.0,0.049]
[1744497071891,0.234128,85423.0,85422.0,0.05497001]
[1744497073284,0.234128,85423.0,85422.0,0.05]
[1744497073702,0.235128,85423.0,85422.0,0.052]
[1744497073903,0.235128,85423.0,85422.0,0.053]
[1744497074618,0.235128,85423.0,85422.0,0.004]
[1744497075066,0.42864774,85423.0,85422.0,0.004]
[1744497075283,0.35596954,85423.0,85422.0,0.004]
[1744497075796,0.74516954,85423.0,85422.0,0.004]
[1744497076035,0.35454085,85422.0,85421.0,7e-08]
[1744497076253,0.52518239,85422.0,85421.0,7e-08]
[1744497076691,1.05941087,85422.0,85421.0,7e-08]
[1744497076878,0.93868239,85422.0,85421.0,7e-08]
[1744497077352,0.94168239,85422.0,85421.0,7e-08]
[1744497078457,2.14676239,85422.0,85421.0,7e-08]
[1744497078676,2.08242154,85422.0,85421.0,7e-08]
[1744497079121,2.08742154,85422.0,85421.0,7e-08]
[1744497080559,1.3502,85422.0,85421.0,7e-08]
[1744497088771,1.47104154,85422.0,85421.0,7e-08]
[1744497094638,2.28538239,85422.0,85421.0,7e-08]
[1744497095515,2.28238239,85422.0,85421.0,7e-08]
[1744497095719,2.28338239,85422.0,85421.0,7e-08]
[1744497096046,2.29538239,85422.0,85421.0,7e-08]
[1744497096180,2.27738239,85422.0,85421.0,7e-08]
[1744497096381,2.39811087,85422.0,85421.0,7e-08]
[1744497096585,2.41711087,85422.0,85421.0,7e-08]
[1744497097776,2.41811087,85422.0,85421.0,7e-08]
[1744497097978,2.47060655,85422.0,85421.0,7e-08]
[1744497099470,2.34887807,85422.0,85421.0,7e-08]
[1744497100984,2.24159722,85422.0,85421.0,7e-08]
[1744497101190,2.23550154,85422.0,85421.0,7e-08]
[1744497101628,1.89550154,85422.0,85421.0,7e-08]
[1744497102673,1.75842154,85422.0,85421.0,7e-08]
[1744497102853,2.23550154,85422.0,85421.0,7e-08]
[1744497105765,2.25004239,85422.0,85421.0,7e-08]
[1744497108047,2.23550154,85422.0,85421.0,7e-08]
[1744497110323,2.25004239,85422.0,85421.0,7e-08]
[1744497110525,2.34304239,85422.0,85421.0,7e-08]
[1744497110723,2.34913805,85422.0,85421.0,7e-08]
[1744497110924,2.46986653,85422.0,85421.0,7e-08]
[1744497111946,2.46286653,85422.0,85421.0,7e-08]
[1744497112148,0.01454085,85404.0,85401.0,7e-07]
[1744497112354,0.36956839,85402.0,85401.0,7e-07]
[1744497112584,0.37855046,85402.0,85401.0,7e-07]
[1744497113220,0.49927894,85402.0,85401.0,7e-07]
[1744497113417,0.37855046,85402.0,85401.0,7e-07]
[1744497113694,0.37855046,85402.0,85401.0,0.00046791]
[1744497114794,0.38655046,85402.0,85401.0,0.00046791]
[1744497116283,0.37200961,85402.0,85401.0,0.00046791]
[1744497116664,0.37600961,85402.0,85401.0,0.00046791]
[1744497116873,0.38759695,85402.0,85401.0,0.00046791]
[1744497117919,0.4021378,85402.0,85401.0,0.00046791]
[1744497119942,0.46409382,85402.0,85401.0,0.00046791]
[1744497120156,0.4021378,85402.0,85401.0,0.00046791]
[1744497121258,0.38759695,85402.0,85401.0,0.00046791]
[1744497124703,0.39854282,85402.0,85401.0,0.00046791]
[1744497125508,0.41308367,85402.0,85401.0,9.1e-07]
[1744497126144,0.39854282,85402.0,85401.0,9.1e-07]
[1744497127570,0.38759695,85402.0,85401.0,9.1e-07]
[1744497128183,0.39224807,85402.0,85401.0,0.09370091]
[1744497128429,0.383266,85402.0,85401.0,0.09370091]
[1744497130077,0.246186,85402.0,85401.0,0.09370091]
[1744497130283,0.383266,85402.0,85401.0,0.09370091]
[1744497135629,0.379266,85402.0,85401.0,0.09370091]
[1744497135993,0.14508,85402.0,85401.0,0.09370091]
[1744497136195,0.371266,85402.0,85401.0,0.09370091]
[1744497137021,0.372266,85402.0,85401.0,0.09370091]
[1744497138140,0.235186,85402.0,85401.0,0.09370091]
[1744497139080,0.235186,85402.0,85401.0,0.09991513]
[1744497140353,0.235186,85402.0,85401.0,0.09370091]
[1744497141507,0.235186,85402.0,85401.0,0.09991513]
[1744497143090,0.235186,85402.0,85401.0,0.09370091]
[1744497150420,0.234186,85402.0,85401.0,0.09370091]
[1744497150687,0.235186,85402.0,85401.0,0.09370091]
[1744497151178,0.237186,85402.0,85401.0,0.09370091]
[1744497152690,0.238186,85402.0,85401.0,0.09370091]
[1744497158568,0.238186,85402.0,85401.0,9.1e-07]
[1744497159935,0.35902754,85402.0,85401.0,9.1e-07]
[1744497160163,0.46277648,85402.0,85401.0,9.1e-07]
[1744497160360,0.40472754,85402.0,85401.0,9.1e-07]
[1744497160989,0.40372754,85402.0,85401.0,9.1e-07]
[1744497161356,0.40872754,85402.0,85401.0,9.1e-07]
[1744497162025,0.40572754,85402.0,85401.0,9.1e-07]
[1744497162241,0.41372754,85402.0,85401.0,9.1e-07]
[1744497169814,0.36802754,85402.0,85401.0,9.1e-07]
[1744497177312,0.50502754,85402.0,85401.0,9.1e-07]
[1744497177515,0.68529687,85402.0,85401.0,9.1e-07]
[1744497178361,0.56456839,85402.0,85401.0,9.1e-07]
[1744497181295,1.31806832,85402.0,85401.0,9.1e-07]
[1744497183190,1.31806832,85402.0,85396.0,3.1e-07]
[1744497183191,0.35454085,85397.0,85396.0,3.1e-07]
[1744497183403,0.47538239,85397.0,85396.0,4.3e-07]
[1744497184529,0.47838239,85397.0,85396.0,4.3e-07]
[1744497184753,0.48438239,85397.0,85396.0,4.3e-07]
[1744497186887,0.89788232,85397.0,85396.0,4.3e-07]
[1744497191875,0.58874385,85396.0,85395.0,6.3e-07]
[1744497192077,0.58875385,85392.0,85391.0,8.3e-07]
[1744497192282,0.720558,85392.0,85391.0,8.3e-07]
[1744497192700,1.13405793,85392.0,85391.0,8.3e-07]
[1744497193952,1.13905793,85392.0,85391.0,8.3e-07]
[1744497194234,1.14605793,85392.0,85391.0,8.3e-07]
[1744497194437,1.13509532,85392.0,85391.0,8.3e-07]
[1744497194645,1.12809532,85392.0,85391.0,8.3e-07]
[1744497194848,1.13809532,85392.0,85391.0,8.3e-07]
[1744497197211,1.12355447,85392.0,85391.0,8.3e-07]
[1744497199308,0.88934147,85392.0,85391.0,8.3e-07]
[1744497201657,0.88934147,85392.0,85391.0,0.04710083]
[1744497202834,0.42849993,85392.0,85391.0,0.04710083]
[1744497203256,0.43945834,85392.0,85391.0,0.04710083]
[1744497204278,0.03405841,85392.0,85391.0,0.04710083]
[1744497204483,0.02595841,85392.0,85391.0,0.04710083]
[1744497211183,0.02595841,85392.0,85391.0,0.09370083]
[1744497211694,0.02595841,85392.0,85391.0,0.10026595]
[1744497211849,0.01,85392.0,85391.0,0.10026595]
[1744497212275,0.012,85392.0,85391.0,0.10026595]
[1744497212805,0.244213,85392.0,85391.0,0.10026595]